bitfinex/quotes_ETHUSD_20250519
["timestamp","ask_amount","ask_price","bid_price","bid_amount"]
[1747639663435,9.3762,2399.2,2397.3,1.3156]
[1747639663436,4.17077318,2397.7,2397.4,0.13025072]
[1747639663645,4.17077318,2397.7,2397.3,1.3156]
[1747639663849,4.17076948,2397.7,2397.3,1.3156]
[1747639664023,11.869,2397.9,2397.3,1.3156]
[1747639664225,1.3762,2398.4,2397.6,4.17073914]
[1747639664418,9.69519416,2398.6,2397.7,4.17066355]
[1747639664419,4.16909864,2398.6,2397.7,4.17066355]
[1747639664622,4.16958604,2398.4,2397.8,4.17035516]
[1747639664817,4.16963036,2398.3,2397.8,4.17035516]
[1747639665023,4.16952724,2398.4,2397.7,4.17062483]
[1747639665257,4.16966006,2398.3,2397.8,4.17040893]
[1747639665453,4.16946058,2398.4,2397.9,4.1702191]
[1747639665659,4.16946058,2398.4,2397.8,6.19191719]
[1747639665975,11.813,2398.6,2397.8,2.02151832]
[1747639666265,4.17067558,2397.7,2397.2,5.48700807]
[1747639666471,4.22298457,2397.6,2397.2,1.3156]
[1747639666651,0.05214142,2397.6,2397.2,1.3156]
[1747639666830,4.17073364,2397.7,2397.2,1.3156]
[1747639666831,4.17066355,2397.7,2397.2,1.3156]
[1747639667030,4.17052641,2397.8,2397.2,1.3156]
[1747639667275,5.52594835,2398.0,2397.2,1.3156]
[1747639667276,4.17079519,2397.7,2397.2,1.3156]
[1747639667562,11.999,2397.9,2397.2,1.3156]
[1747639667563,4.17092498,2397.6,2397.2,1.3156]
[1747639667731,4.17018801,2398.0,2397.3,4.17135944]
[1747639668084,0.49041183,2398.4,2398.2,4.16970713]
[1747639668232,0.34626285,2398.3,2398.1,4.16987807]
[1747639668565,0.65388245,2398.6,2398.5,4.16927246]
[1747639668873,0.65388245,2398.6,2398.5,16.04527246]
[1747639669855,0.65388245,2398.6,2398.5,4.16927246]
[1747639670364,0.65388245,2398.6,2398.5,6.05054477]
[1747639670561,4.16790831,2399.3,2398.8,4.16870606]
[1747639670861,4.16790831,2399.3,2398.5,1.88127231]
[1747639670862,11.953,2399.5,2398.6,4.16907615]
[1747639671061,4.16747363,2399.6,2399.1,4.16821586]
[1747639671530,11.946,2399.8,2399.0,1.3107]
[1747639671727,4.16720632,2399.7,2399.2,4.16795329]
[1747639672141,4.16726651,2399.7,2399.2,4.16795329]
[1747639672345,4.16719483,2399.7,2399.2,4.16796288]
[1747639672552,4.16736549,2399.6,2399.1,4.16813357]
[1747639672757,4.16736549,2399.6,2397.3,1.3107]
[1747639672758,10.24400436,2399.2,2397.3,1.3107]
[1747639672956,4.17022152,2398.0,2397.3,1.3107]
[1747639673143,4.17006314,2398.1,2397.5,4.17097538]
[1747639673348,4.17006314,2398.1,2397.3,1.3107]
[1747639673545,4.17016156,2398.0,2397.5,4.1709219]
[1747639673764,4.17016156,2398.0,2397.5,5.13621675]
[1747639673972,4.16999885,2398.1,2397.5,0.96529485]
[1747639674181,4.16994648,2398.2,2397.6,4.17073025]
[1747639674364,4.16976036,2398.3,2397.7,4.17062447]
[1747639674552,4.16930659,2398.5,2397.8,4.17048961]
[1747639674877,4.16930659,2398.5,2397.9,4.17015315]
[1747639675075,13.86778245,2399.0,2397.9,4.17015315]
[1747639675076,0.65388245,2399.0,2397.9,1.2578]
[1747639675244,0.65388245,2399.0,2398.3,4.16960242]
[1747639675245,4.16883782,2398.8,2398.3,4.16960242]
[1747639675578,4.16883782,2398.8,2398.1,4.16994354]
[1747639675579,0.65388245,2399.0,2398.2,4.1697009]
[1747639675877,0.65388245,2399.0,2398.2,0.53901758]
[1747639676047,4.16872351,2398.9,2398.3,16.04551008]
[1747639676243,12.16932876,2398.5,2397.3,1.2512]
[1747639676455,4.17050117,2397.8,2397.3,5.42247623]
[1747639676774,4.17054928,2397.8,2397.3,5.42253857]
[1747639676974,4.17047075,2397.9,2397.3,6.38687818]
[1747639677175,4.16979401,2398.2,2397.3,6.38687818]
[1747639677386,4.17043603,2397.9,2397.4,4.17117777]
[1747639677555,4.16956862,2398.4,2397.3,14.09161816]
[1747639677745,12.09,2398.6,2398.0,4.17010595]
[1747639678078,1.3141,2398.7,2398.0,4.16997593]
[1747639678079,16.25092567,2398.7,2398.0,4.16997593]
[1747639678278,16.25092567,2398.7,2397.4,13.58020492]
[1747639678279,4.1687628,2398.8,2398.3,4.16947307]
[1747639678471,5.53669597,2399.1,2398.4,4.16944548]
[1747639678652,12.076,2399.1,2398.7,4.1688482]
[1747639678841,12.076,2399.1,2398.8,4.16872932]
[1747639679292,12.71588245,2399.4,2398.1,1.2888]
[1747639679493,4.16820617,2399.2,2398.7,4.16877168]
[1747639679645,16.20796938,2399.3,2398.7,4.16877168]
[1747639679844,12.04,2399.3,2398.2,12.80488]
[1747639680048,1.73863655,2399.5,2398.8,4.16863343]
[1747639680281,4.58433653,2399.5,2398.5,4.16922168]
[1747639680445,8.0,2399.7,2398.5,4.16927246]
[1747639680641,4.16744185,2399.6,2399.1,4.16809545]
[1747639680894,4.82098632,2399.8,2398.9,4.16857726]
[1747639681097,0.65388245,2399.8,2399.7,4.16718756]
[1747639681382,0.65388245,2399.8,2399.4,12.16770859]
[1747639681383,0.65388245,2399.8,2399.4,18.004]
[1747639681902,0.65388245,2399.8,2399.6,4.16734311]
[1747639682217,0.05,2399.9,2399.7,4.16716134]
[1747639682376,0.05,2399.9,2399.4,18.004]
[1747639682377,0.05,2399.9,2399.4,29.879]
[1747639682563,5.52594835,2399.5,2398.3,4.16954249]
[1747639682763,8.55259484,2399.4,2398.2,4.16968987]
[1747639682968,4.16891463,2398.8,2398.1,5.91567429]
[1747639683166,4.1692012,2398.6,2398.1,1.74572894]
[1747639683469,1.3553,2399.0,2398.1,1.74572894]
[1747639683673,4.16914137,2398.6,2398.1,1.74572894]
[1747639683875,0.05212056,2398.5,2398.1,5.91560725]
[1747639684092,0.05212056,2398.5,2398.2,4.16978754]
[1747639684297,0.0521205,2398.8,2398.2,4.16968118]
[1747639684502,4.1689291,2398.7,2398.2,4.16968118]
[1747639684869,5.9935525,2398.8,2398.2,4.16968118]
[1747639685215,1.82472036,2398.8,2398.1,1.3611]
[1747639685399,1.77259986,2398.8,2397.6,5.47342267]
[1747639685703,1.3553,2399.0,2397.8,4.17048961]
[1747639686004,4.16891014,2398.8,2398.2,4.16972858]
[1747639686203,0.0521205,2398.7,2398.2,4.16972858]
[1747639686608,4.22106659,2398.7,2398.0,4.170076]
[1747639686813,4.22106659,2398.7,2395.8,3.03061576]
[1747639686814,4.1713702,2397.3,2397.1,0.05]
[1747639687117,1.2647,2397.8,2397.1,4.22163236]
[1747639687422,1.3286,2398.3,2397.4,4.17102682]
[1747639687620,4.17035764,2397.9,2397.3,4.1712601]
[1747639687825,4.17025104,2398.0,2397.2,4.17151583]
[1747639687977,4.16979568,2398.2,2397.4,4.17107296]
[1747639688177,4.17047361,2397.9,2397.3,4.17126925]
[1747639688378,0.0521381,2397.8,2397.3,1.60952693]
[1747639688579,4.17058655,2397.8,2397.3,1.60952693]
[1747639688782,4.17058655,2397.8,2397.3,4.17126869]
[1747639689116,6.05084778,2398.3,2397.4,4.17103316]
[1747639689117,4.1700007,2398.1,2397.4,4.17103316]
[1747639689280,4.1700007,2398.1,2397.2,4.17153345]
[1747639689281,16.28226704,2398.0,2397.2,4.17153345]
[1747639689487,12.112,2398.0,2397.4,4.17104302]
[1747639689815,12.092,2398.1,2397.6,4.17081046]
[1747639690021,1.3286,2398.3,2397.8,4.17048187]
[1747639690323,4.16944629,2398.4,2397.8,4.17036076]
[1747639690527,4.16944629,2398.4,2397.7,4.17064938]
[1747639690695,4.59126992,2398.6,2397.7,0.55198494]
[1747639690696,12.079,2398.5,2397.7,0.55198494]
[1747639690898,4.17153345,2397.2,2397.1,0.05]
[1747639692136,12.263,2397.8,2397.1,0.05]
[1747639692317,0.55,2397.7,2397.1,0.05]
[1747639692521,4.17153345,2397.2,2397.1,0.05]
[1747639692807,4.17139285,2397.3,2397.1,0.05]
[1747639693021,4.17153345,2397.2,2397.1,0.05]
[1747639693190,4.17147655,2397.3,2397.1,0.05]
[1747639693390,5.48443345,2397.2,2397.1,0.05]
[1747639693618,17.71343345,2397.2,2397.1,0.05]
[1747639693795,16.40227879,2397.4,2397.1,0.05]
[1747639693996,12.231,2397.4,2397.1,0.05]
[1747639694195,9.3579,2398.0,2397.2,4.17153003]
[1747639694421,12.224,2397.9,2397.3,4.17125862]
[1747639694643,16.39446559,2397.9,2397.2,4.17146931]
[1747639694791,4.17066521,2397.7,2397.2,4.17146931]
[1747639695310,4.17117663,2397.5,2397.1,0.05]
[1747639695631,12.199,2397.6,2397.2,4.17153125]
[1747639696006,3.45318327,2398.4,2397.2,0.83934026]
[1747639696315,4.17039653,2397.9,2397.4,4.17112228]
[1747639696491,8.0,2398.3,2397.2,13.07134026]
[1747639696824,16.33480279,2398.2,2397.6,4.17074348]
[1747639696992,4.16997951,2398.1,2397.5,4.17092343]
[1747639697523,4.16997951,2398.1,2397.6,4.17080599]
[1747639697723,4.17014278,2398.0,2397.6,4.17080599]
[1747639697929,16.33487846,2398.2,2397.7,4.1706139]
[1747639698630,16.26987846,2398.2,2397.7,4.1706139]
[1747639698825,4.1699818,2398.1,2397.5,4.17095234]
[1747639699039,4.1699818,2398.1,2397.6,4.17081273]
[1747639699243,12.078,2398.2,2397.3,4.17135686]
[1747639699432,12.078,2398.2,2397.2,13.07134026]
[1747639699433,12.068,2398.2,2397.8,4.17037075]
[1747639699627,12.068,2398.2,2397.9,4.17030998]
[1747639699829,0.42210666,2398.6,2397.7,4.17062923]
[1747639699830,4.16892483,2398.7,2397.7,4.17062561]
[1747639700032,16.22800675,2398.7,2398.1,4.16987298]
[1747639700351,16.21700675,2398.7,2398.2,4.1697026]
[1747639700526,16.20600675,2398.7,2398.2,4.1697026]
[1747639700729,4.16872671,2398.9,2398.3,5.4328656]
[1747639700933,4.16938216,2398.5,2398.0,4.17013102]
[1747639701241,4.1694618,2398.4,2397.9,4.17023809]
[1747639701455,12.023,2398.6,2397.7,12.231]
[1747639701619,4.1695207,2398.4,2397.9,4.1702033]
[1747639702023,4.1695207,2398.4,2397.8,4.17044064]
[1747639702342,4.16954649,2398.4,2397.9,4.17023172]
[1747639702547,4.16960376,2398.4,2397.9,4.17023172]
[1747639703049,4.16962791,2398.3,2397.9,4.17023172]
[1747639703239,0.88602318,2398.3,2397.6,4.17073549]
[1747639703429,4.16972529,2398.3,2397.8,4.17048961]
[1747639703646,4.16972529,2398.3,2397.2,1.3803]
[1747639703647,4.16989176,2398.2,2397.7,4.17059103]
[1747639703942,4.1698754,2398.2,2397.7,4.17057186]
[1747639704162,4.1698754,2398.2,2397.2,1.3803]
[1747639704163,4.16933803,2398.5,2397.9,4.17030279]
[1747639704319,4.16933803,2398.5,2397.8,4.17046151]
[1747639704320,11.938,2398.6,2397.8,4.17041074]
[1747639704519,1.70152221,2398.5,2398.1,4.16996399]
[1747639704710,4.16945436,2398.4,2397.5,16.40199004]
[1747639704910,4.1696325,2398.3,2397.9,4.17022677]
[1747639705111,4.1696325,2398.3,2397.8,4.17038546]
[1747639705313,4.16953332,2398.4,2397.9,4.17031339]
[1747639705647,1.2652,2398.7,2397.6,4.1708375]
[1747639705954,5.43419016,2398.7,2398.2,4.16976081]
[1747639706322,12.31587267,2398.8,2398.4,4.16932145]
[1747639706544,12.31587267,2398.8,2398.4,4.16935401]
[1747639706750,16.48464431,2398.8,2398.3,4.16952421]
[1747639707124,4.58564431,2398.8,2398.4,4.16943721]
[1747639707564,4.16852792,2399.0,2398.5,4.16923924]
[1747639708066,0.65388245,2399.3,2399.1,4.16820692]
[1747639708361,0.65388245,2399.3,2398.1,11.898]
[1747639708362,0.65388245,2399.3,2399.0,4.16824635]
[1747639708859,0.65388245,2399.3,2399.2,4.16805601]
[1747639709062,4.16737404,2399.6,2399.1,4.16818713]
[1747639709265,2.2573907,2399.6,2399.2,4.16798769]
[1747639709430,2.07358327,2399.8,2398.7,5.51152165]
[1747639709766,4.16748549,2399.6,2399.2,4.16804025]
[1747639709963,4.16748549,2399.6,2399.1,4.16816299]
[1747639710256,0.05210117,2399.5,2398.7,1.3426]
[1747639710460,4.1681844,2399.2,2398.7,5.51144139]
[1747639710659,4.16852244,2399.0,2398.4,1.2536]
[1747639710861,4.16853634,2399.0,2398.5,4.16922572]
[1747639711023,4.16853634,2399.0,2398.6,4.16908584]
[1747639711218,4.16853634,2399.0,2398.4,5.42301734]
[1747639711418,4.16832394,2399.1,2398.6,4.16909732]
[1747639711649,5.08533008,2399.1,2398.6,4.16909732]
[1747639711849,0.05211453,2399.0,2398.2,4.16971257]
[1747639712087,4.16900161,2398.7,2398.2,4.16971257]
[1747639712283,12.16840751,2399.0,2398.0,13.2859]
[1747639712458,1.9389,2398.6,2397.3,1.3899]
[1747639712657,0.55,2398.0,2397.1,0.05]
[1747639712862,4.17124284,2397.4,2397.1,0.05]
[1747639713087,0.55,2397.8,2397.1,0.05]
[1747639713288,4.17101749,2397.5,2397.1,0.05]
[1747639713582,4.17071527,2397.7,2397.1,4.22160679]
[1747639713890,4.17102004,2397.5,2397.1,0.05]
[1747639714180,4.17102004,2397.5,2397.1,4.2216954]
[1747639714387,4.17085576,2397.6,2397.1,4.2216954]
[1747639714582,4.17102384,2397.5,2397.1,4.2216954]
[1747639714749,4.17066575,2397.7,2397.1,0.05]
[1747639714946,4.17103105,2397.5,2397.1,0.05]
[1747639715389,4.17066575,2397.7,2397.1,4.2216466]
[1747639715550,0.05214646,2397.6,2397.2,4.17153345]
[1747639716288,11.759,2397.8,2397.2,4.17153345]
[1747639716497,5.49700788,2398.3,2397.8,4.17048423]
[1747639716655,11.734,2398.2,2397.8,4.17048423]
[1747639716850,4.16953216,2398.4,2397.9,4.17031552]
[1747639717087,4.16983083,2398.2,2397.7,4.1706492]
[1747639717291,4.1693678,2398.5,2397.4,13.2399]
[1747639717453,0.65388245,2398.6,2397.6,4.1708375]
[1747639717659,15.91724011,2398.6,2398.0,4.17005624]
[1747639717872,11.748,2398.6,2398.0,4.17005624]
[1747639718065,17.25556513,2398.7,2398.2,4.16976783]
[1747639718271,5.52656513,2398.7,2398.2,4.16976783]
[1747639718567,2.20410614,2399.1,2398.0,1.3898]
[1747639718776,4.16920939,2398.6,2398.1,4.16996261]
[1747639718963,4.16905762,2398.7,2398.2,4.16975842]
[1747639719483,15.87182737,2398.8,2398.3,4.16957519]
[1747639719685,4.16895177,2398.7,2398.2,4.16969484]
[1747639719859,17.87588197,2398.8,2398.3,4.16959918]
[1747639720059,13.70704132,2398.8,2398.4,4.16932007]
[1747639720394,4.16844659,2399.0,2398.5,4.16926737]
[1747639720566,11.658,2398.9,2398.5,4.16926737]
[1747639720890,0.05211738,2398.8,2398.0,1.3898]
[1747639721080,11.658,2398.9,2398.2,4.1696551]
[1747639721289,2.20410614,2399.1,2398.0,1.3898]
[1747639721459,15.81453169,2399.0,2398.0,2.07865496]
[1747639721660,4.16865203,2398.9,2398.0,13.97565496]
[1747639721994,4.16867685,2398.9,2398.4,4.16934803]
[1747639722296,4.16859082,2398.9,2398.4,4.16932276]
[1747639722594,4.16858437,2398.9,2398.3,4.16954625]
[1747639722896,4.16882815,2398.8,2398.3,4.16954625]
[1747639723603,4.16917683,2398.6,2398.1,4.16987031]
[1747639724155,0.55,2398.4,2397.3,1.329]
[1747639724399,0.55,2398.4,2397.4,4.17106594]
[1747639724400,4.16979401,2398.2,2397.4,4.17106594]
[1747639724596,4.17051076,2397.8,2397.4,4.17106594]
[1747639725178,4.22252814,2397.9,2397.4,4.17106594]
[1747639726099,4.17021006,2398.0,2397.5,4.17086568]
[1747639726303,4.17038337,2397.9,2397.4,4.17107719]
[1747639726464,1.98822529,2398.0,2397.5,4.17100752]
[1747639726660,0.51312223,2398.7,2397.5,4.17101147]
[1747639727083,4.16900082,2398.7,2398.2,4.16963543]
[1747639727292,16.96124668,2398.8,2398.2,4.16963543]
[1747639727496,4.16919051,2398.6,2398.0,4.17014178]
[1747639727801,4.16919051,2398.6,2398.1,4.16992339]
[1747639727969,4.16927646,2398.5,2398.1,4.16992339]
[1747639728165,4.16953003,2398.4,2397.9,4.1702525]
[1747639728369,4.1696215,2398.3,2397.8,4.17041722]
[1747639728598,4.16967929,2398.3,2397.8,4.17036648]
[1747639729184,4.16967929,2398.3,2397.9,4.17030287]
[1747639729382,4.16967929,2398.3,2397.6,1.32]
[1747639729383,15.63200537,2398.7,2398.2,4.16964772]
[1747639729582,4.16900537,2398.7,2398.2,4.16964772]
[1747639729782,5.44328284,2398.8,2398.3,4.16952288]
[1747639730104,12.22788245,2399.1,2398.5,4.16917166]
[1747639730105,4.82220403,2399.1,2398.5,4.16917166]
[1747639730331,4.82220403,2399.1,2398.6,4.16906149]
[1747639730332,11.454,2399.0,2398.6,4.16906149]
[1747639730802,15.62240619,2399.0,2398.3,1.2614]
[1747639730975,4.16883149,2398.8,2398.3,4.16953767]
[1747639731402,4.16883149,2398.8,2398.4,4.1694274]
[1747639731585,5.79629302,2398.9,2398.4,4.1694274]
[1747639732684,1.62762886,2398.9,2398.5,4.16917996]
[1747639732995,15.62246753,2399.0,2398.4,4.1694274]
[1747639732996,11.374,2399.0,2398.6,4.16908968]
[1747639733202,4.16828448,2399.1,2398.2,4.16978644]
[1747639733375,15.53328448,2399.1,2398.6,4.16895222]
[1747639734218,1.2613,2399.2,2398.1,11.574]
[1747639734414,1.2613,2399.2,2398.0,1.2952]
[1747639734415,11.337,2399.1,2398.0,1.2952]
[1747639734595,4.16864122,2398.9,2398.4,4.16932101]
[1747639734920,1.25983,2399.0,2398.3,4.16962014]
[1747639735217,12.5703,2399.2,2398.5,4.1691638]
[1747639735419,4.16831112,2399.1,2398.2,15.74377035]
[1747639735583,4.16831112,2399.1,2398.6,4.16893382]
[1747639735979,4.16831112,2399.1,2398.7,4.16890705]
[1747639736180,16.73842713,2399.2,2398.7,4.16890705]
[1747639736391,18.82906571,2399.2,2398.7,4.16890705]
[1747639736622,4.16823539,2399.1,2398.7,4.16890705]
[1747639736833,18.82908042,2399.2,2398.7,4.16890705]
[1747639737132,14.66093858,2399.2,2398.6,4.16904398]
[1747639737334,4.16842765,2399.0,2398.2,15.74379081]
[1747639737631,2.29975029,2399.0,2398.2,15.74379081]
[1747639737846,4.16831968,2399.1,2398.6,4.16900571]
[1747639738134,4.16831968,2399.1,2398.7,4.1688397]
[1747639738433,16.64747847,2399.2,2398.7,4.1688397]
[1747639738734,4.16823399,2399.1,2398.7,4.1688397]
[1747639739830,16.64745051,2399.2,2398.7,4.1688397]
[1747639740032,3.34284359,2399.2,2398.8,4.16873355]
[1747639740237,1.3154,2399.5,2398.4,1.3127]
[1747639740402,5.48301235,2399.5,2399.1,4.16815992]
[1747639740594,15.31446366,2399.6,2399.1,4.16815992]
[1747639740808,4.16763125,2399.5,2399.0,4.16839757]
[1747639741110,6.11583645,2399.5,2399.0,4.16839757]
[1747639741658,0.70388245,2399.9,2399.4,4.16762232]
[1747639741830,4.16726365,2399.7,2399.0,16.7368793]
[1747639742029,0.05209508,2399.8,2399.1,4.16816581]
[1747639742030,4.16751564,2399.6,2399.1,4.16816581]
[1747639742737,0.83345795,2399.6,2399.2,4.16805311]
[1747639742947,4.16726899,2399.7,2399.2,4.16805311]
[1747639743320,4.16720474,2399.7,2399.2,4.16796486]
[1747639744052,4.16711127,2399.8,2399.3,4.16786574]
[1747639744253,0.05,2399.9,2399.3,4.16783942]
[1747639744551,15.28090824,2399.9,2399.4,4.16761158]
[1747639744722,17.35521339,2399.9,2399.4,4.16761158]
[1747639744918,0.05209567,2399.8,2399.0,1.3426]
[1747639745135,0.55,2399.8,2398.9,4.16848814]
[1747639745454,4.16762403,2399.5,2399.0,4.16837979]
[1747639745650,4.16785996,2399.4,2398.9,4.16857422]
[1747639745851,4.16785996,2399.4,2398.7,1.2676]
[1747639746052,1.3754,2399.4,2398.8,4.16875104]
[1747639746219,4.16788611,2399.3,2398.8,4.16864349]
[1747639746417,4.16813223,2399.2,2398.7,5.43641611]
[1747639746618,4.16813223,2399.2,2398.8,4.16867162]
[1747639746619,4.16806292,2399.2,2398.8,4.16867162]
[1747639746854,2.43323678,2399.9,2398.7,1.2676]
[1747639747040,8.0,2399.8,2398.7,1.2676]
[1747639747240,4.16780804,2399.4,2398.9,4.16850185]
[1747639747551,4.16744855,2399.6,2398.7,1.2676]
[1747639747751,11.026,2399.5,2399.1,4.16807051]
[1747639747961,11.026,2399.5,2399.0,4.1683082]
[1747639748145,11.026,2399.5,2398.7,1.2676]
[1747639748146,15.19361858,2399.5,2399.1,4.16822593]
[1747639748334,11.026,2399.5,2399.1,4.16822593]
[1747639748653,15.19355204,2399.5,2399.0,4.16832879]
[1747639748857,4.16814054,2399.2,2398.6,4.16902709]
[1747639749022,1.3028,2399.3,2398.5,22.17314991]
[1747639749023,1.3028,2399.3,2398.5,18.004]
[1747639749222,4.1682209,2399.2,2398.5,18.004]
[1747639749423,4.16858179,2398.9,2398.5,22.17318525]
[1747639749718,4.16861761,2398.9,2398.2,4.16963867]
[1747639750024,10.977,2399.0,2398.3,4.16961068]
[1747639750224,4.16919998,2398.6,2398.1,4.16979576]
[1747639750541,4.1692315,2398.6,2398.0,5.2849582]
[1747639750742,4.16954486,2398.4,2397.8,0.29174153]
[1747639750947,4.16955075,2398.4,2397.9,4.17022821]
[1747639751149,4.16989966,2398.2,2397.6,4.1706794]
[1747639751327,4.17023032,2398.0,2397.4,5.25663271]
[1747639751656,4.17006075,2398.1,2397.6,4.1708346]
[1747639751857,4.1701772,2398.0,2397.5,4.17093524]
[1747639752720,5.11956345,2398.1,2397.4,1.0855]
[1747639752922,1.1786,2398.6,2397.5,0.01434916]
[1747639753238,4.16905058,2398.7,2398.2,4.16969284]
[1747639753637,4.16913081,2398.6,2398.2,4.16969284]
[1747639753835,15.09685381,2398.8,2398.3,4.16951998]
[1747639754359,10.908,2398.7,2398.4,4.16931596]
[1747639754542,18.54710209,2399.2,2398.5,4.16911572]
[1747639754543,4.16825577,2399.1,2398.5,4.16911572]
[1747639754753,0.0521122,2399.0,2398.2,4.16979401]
[1747639754925,0.65388245,2399.4,2399.3,4.71788229]
[1747639755120,0.65388245,2399.4,2399.2,1.0889]
[1747639755370,2.68373996,2399.3,2399.2,1.0889]
[1747639755535,0.69168699,2399.4,2398.7,9.0889]
[1747639755740,0.65388245,2399.4,2398.7,14.58360938]
[1747639755935,0.65388245,2399.4,2399.3,5.25678229]
[1747639756709,0.65388245,2399.4,2398.7,1.32581583]
[1747639756981,0.65388245,2399.4,2399.2,4.16795608]
[1747639757168,0.65388245,2399.4,2399.3,4.16788229]
[1747639757374,0.65388245,2399.4,2399.1,5.3646217]
[1747639757775,2.07358327,2399.6,2399.2,4.16805562]
[1747639757976,5.39445436,2399.9,2399.2,4.16805562]
[1747639758557,5.39445436,2399.9,2399.3,4.16786938]
[1747639758970,5.39434055,2399.9,2399.3,4.16779414]
[1747639759579,5.39434055,2399.9,2399.5,4.16743132]
[1747639759580,1.2275,2399.9,2399.5,4.16743132]
[1747639760586,1.2275,2399.9,2399.5,4.16744403]
[1747639760973,5.39438006,2399.9,2399.4,4.16766114]
[1747639761356,1.2275,2399.9,2399.1,1.1965]
[1747639761686,4.16724935,2399.7,2399.2,4.1679635]
[1747639761890,4.16724935,2399.7,2399.2,4.16797542]
[1747639762094,5.08985492,2399.8,2399.4,4.16770814]
[1747639762297,5.08985492,2399.8,2399.3,4.16779541]
[1747639762594,5.08976671,2399.8,2399.4,4.16770046]
[1747639762791,5.39438654,2399.9,2399.4,4.16770046]
[1747639763168,4.16702214,2399.8,2399.3,4.16779035]
[1747639763869,4.16702214,2399.8,2399.4,4.16767571]
[1747639764094,5.39446458,2399.9,2399.4,4.16767571]
[1747639764296,1.2275,2399.9,2399.6,4.16726657]
[1747639764659,0.05,2399.9,2399.8,4.16701391]
[1747639764877,0.05,2399.9,2399.7,4.16715055]
[1747639765665,4.16709266,2399.8,2399.1,1.50282142]
[1747639765871,4.16709266,2399.8,2399.3,4.16778997]
[1747639766086,4.16735652,2399.7,2399.2,4.16805159]
[1747639766662,0.42170927,2399.8,2399.5,4.16753097]
[1747639766864,8.05,2399.9,2399.4,4.16757708]
[1747639767105,4.16701487,2399.8,2399.4,4.16757708]
[1747639767368,12.21693586,2399.9,2399.0,4.1684035]
[1747639767585,4.16710515,2399.8,2399.3,4.16774103]
[1747639767905,4.16744496,2399.6,2398.8,1.0975]
[1747639768093,4.16814231,2399.2,2398.7,4.16876969]
[1747639768287,4.168538,2399.0,2398.5,4.169186]
[1747639768502,4.168538,2399.0,2398.6,4.16905064]
[1747639768864,4.168333,2399.1,2398.6,4.16905064]
[1747639769082,4.16832508,2399.1,2398.2,12.16978777]
[1747639769260,15.68111894,2399.2,2398.7,4.16883699]
[1747639769459,11.513,2399.2,2398.7,4.16883699]
[1747639769664,15.68111654,2399.2,2398.6,4.16900426]
[1747639769861,4.16832247,2399.1,2398.6,4.16900426]
[1747639771297,11.513,2399.2,2398.7,4.16892415]
[1747639771608,15.6810699,2399.2,2398.7,4.16892415]
[1747639771768,15.6810699,2399.2,2398.8,4.16867888]
[1747639771962,15.6810699,2399.2,2398.7,4.1688514]
[1747639772803,15.75383487,2399.4,2398.5,4.16926837]
[1747639773107,1.1075,2399.6,2399.3,4.16787783]
[1747639773271,2.7971041,2399.8,2398.9,4.16857726]
[1747639773472,1.198,2399.9,2399.0,0.04167844]
[1747639773769,1.198,2399.9,2399.5,4.16739011]
[1747639773968,1.198,2399.9,2399.6,4.16734842]
[1747639774281,1.198,2399.9,2399.6,4.16734084]
[1747639774496,5.36485074,2399.9,2399.5,4.16749037]
[1747639774699,1.198,2399.9,2399.6,4.16726278]
[1747639775017,0.05,2399.9,2399.7,4.16718152]
[1747639775306,0.05,2399.9,2399.8,4.16701391]
[1747639775511,0.05,2399.9,2399.5,1.1835]
[1747639775694,0.05,2399.9,2399.3,11.587]
[1747639775695,0.08780454,2399.9,2399.2,11.587]
[1747639776007,4.16710519,2399.8,2399.3,4.16775827]
[1747639776174,0.05,2399.9,2399.3,4.16788229]
[1747639776371,4.21692222,2399.9,2399.5,4.16753476]
[1747639776566,4.21692222,2399.9,2399.4,4.16763731]
[1747639776800,4.21692222,2399.9,2399.5,4.16753364]
[1747639777011,0.05,2399.9,2399.0,15.7554032]
[1747639777176,0.05,2399.9,2399.8,4.16701391]
[1747639781408,0.05,2399.9,2399.7,4.16714825]
[1747639781583,0.05,2399.9,2399.3,12.4425]
[1747639781794,0.05,2399.9,2399.3,1.1835]
[1747639782017,1.1366,2399.9,2399.1,4.16813245]
[1747639782237,1.1366,2399.9,2398.9,4.16854724]
[1747639782238,4.16788976,2399.3,2398.9,4.16854724]
[1747639782525,4.167843,2399.4,2398.9,4.16852534]
[1747639782723,4.16778448,2399.4,2398.8,4.16866767]
[1747639782888,4.1679666,2399.3,2398.8,4.1686163]
[1747639783219,4.16773677,2399.4,2398.9,4.16857601]
[1747639783417,4.1678829,2399.3,2398.8,4.16863439]
[1747639784424,4.16746171,2399.6,2398.7,4.168924]
[1747639784625,4.16799441,2399.3,2398.8,4.16872969]
[1747639784838,4.16823602,2399.1,2398.6,4.16899566]
[1747639785123,4.16829992,2399.1,2398.6,4.16899566]
[1747639785285,4.1684233,2399.0,2398.6,4.16899566]
[1747639785487,4.16830064,2399.1,2398.6,4.16899566]
[1747639785688,4.16770859,2399.4,2398.8,4.16868022]
[1747639785922,4.16770859,2399.4,2398.6,4.16902426]
[1747639785923,4.16848417,2399.0,2398.4,0.31006225]
[1747639786102,0.61423002,2399.3,2398.3,1.1066]
[1747639786103,4.20647381,2398.9,2398.3,5.27604814]
[1747639786426,4.16841922,2399.0,2398.6,4.16899232]
[1747639786759,4.16848657,2399.0,2398.4,4.16930391]
[1747639786945,4.20648359,2398.9,2398.4,4.16935528]
[1747639787153,4.16855022,2399.0,2398.5,4.16926832]
[1747639787325,4.16859505,2398.9,2398.5,4.16926832]
[1747639788155,4.16850645,2399.0,2398.5,4.16926832]
[1747639788749,4.20630262,2399.0,2398.5,4.16926832]
[1747639789056,4.16849808,2399.0,2398.5,4.16926832]
[1747639789756,4.16829964,2399.1,2398.6,4.16909287]
[1747639790238,4.16829964,2399.1,2398.7,4.16888886]
[1747639790439,4.1683813,2399.1,2398.6,4.1690277]
[1747639790650,0.57642548,2399.3,2396.4,0.93649806]
[1747639790651,1.0923,2399.0,2396.4,0.93649806]
[1747639790871,9.05657371,2398.3,2397.2,1.1693]
[1747639791157,4.17047811,2397.9,2397.3,4.1713309]
[1747639791377,30.025,2398.2,2397.3,4.1713309]
[1747639791552,4.17025102,2398.0,2397.4,4.55571837]
[1747639791761,4.17033209,2397.9,2397.4,4.55571837]
[1747639792071,30.025,2398.2,2397.4,0.38462894]
[1747639792279,4.17039695,2397.9,2397.4,4.55579863]
[1747639792583,30.025,2398.2,2397.5,4.17100212]
[1747639792861,15.21005458,2398.1,2397.6,4.46253132]
[1747639793028,12.1203,2398.3,2397.8,4.17035555]
[1747639793229,12.1203,2398.3,2397.4,4.17118545]
[1747639793429,5.26200419,2398.3,2397.8,4.17037005]